bitfinex-derivatives/quotes_ETHF0:USTF0_20250902
["timestamp","ask_amount","ask_price","bid_price","bid_amount"]
[1756818567238,0.249,4298.2,4298.1,0.7448]
[1756818568541,3.2078,4298.3,4298.1,0.7448]
[1756818568743,0.248,4298.2,4298.1,0.7448]
[1756818570945,3.2078,4298.3,4298.1,0.7448]
[1756818571141,0.248,4298.2,4298.1,0.7448]
[1756818574241,3.3069,4299.0,4298.1,0.7448]
[1756818574437,0.248,4298.9,4298.1,0.7448]
[1756818575646,3.2078,4298.7,4298.6,0.7448]
[1756818577043,3.2078,4299.2,4298.6,0.7448]
[1756818577241,3.4558,4299.2,4299.1,0.7448]
[1756818577642,3.2078,4299.2,4299.1,0.7448]
[1756818577841,3.4558,4299.2,4299.1,0.7448]
[1756818579340,3.4558,4299.2,4298.6,0.7981]
[1756818579651,3.2078,4298.7,4298.6,0.7981]
[1756818580150,3.4558,4298.7,4298.6,0.7981]
[1756818582153,0.248,4298.7,4298.6,0.7981]
[1756818582352,3.4558,4298.7,4298.6,0.7981]
[1756818582647,0.248,4298.7,4298.1,0.7981]
[1756818582850,0.248,4298.6,4298.5,0.3026]
[1756818583351,0.248,4298.7,4298.6,0.7981]
[1756818584047,1.5328,4299.6,4299.5,0.3026]
[1756818584249,1.5328,4299.6,4299.5,1.1007]
[1756818584748,1.7808,4299.6,4299.5,1.1007]
[1756818584944,1.5328,4299.6,4299.5,1.1007]
[1756818585240,2.07789398,4299.6,4299.1,0.7981]
[1756818585442,0.54509398,4299.5,4299.1,0.7981]
[1756818585751,0.0709,4299.3,4298.6,0.7981]
[1756818586055,3.2078,4298.9,4298.8,0.7981]
[1756818586353,3.4558,4298.9,4298.8,0.7981]
[1756818586554,4.00077941,4298.9,4298.1,0.7981]
[1756818586848,3.4558,4298.9,4298.1,0.7981]
[1756818587050,0.61587185,4298.8,4298.1,0.7981]
[1756818587256,0.54497185,4298.7,4298.5,0.3026]
[1756818587449,0.248,4298.6,4298.5,0.3026]
[1756818587645,3.2078,4298.9,4298.5,0.3026]
[1756818587854,0.79297924,4298.8,4298.5,0.3026]
[1756818588148,0.54500109,4298.7,4298.6,0.7981]
[1756818588354,0.54500109,4298.7,4298.6,1.3312]
[1756818588658,0.65850109,4298.7,4298.6,1.3312]
[1756818589147,0.1135,4298.7,4298.6,1.3312]
[1756818589354,0.3615,4298.7,4298.6,1.8503]
[1756818589551,0.248,4298.7,4298.6,1.8503]
[1756818589853,0.475,4298.7,4298.6,1.8503]
[1756818590260,0.475,4298.7,4298.6,0.7981]
[1756818590451,1.09054454,4298.7,4298.1,0.7981]
[1756818590650,0.227,4298.2,4298.1,0.7981]
[1756818590953,0.227,4298.2,4298.1,1.3312]
[1756818590954,0.475,4298.2,4298.1,1.3312]
[1756818591655,0.248,4298.2,4298.1,1.8503]
[1756818592056,0.3615,4298.2,4298.1,1.8503]
[1756818592256,0.3615,4298.2,4298.1,0.7981]
[1756818592257,0.475,4298.2,4298.1,0.7981]
[1756818592456,1.01978722,4298.2,4298.1,0.7981]
[1756818593457,0.77178722,4298.2,4298.1,1.3312]
[1756818593655,0.77178722,4298.2,4297.5,0.3026]
[1756818593656,1.09068722,4298.2,4297.5,0.3026]
[1756818593856,0.0709,4297.4,4297.1,0.7981]
[1756818594051,0.79278722,4297.3,4297.1,0.7981]
[1756818594352,0.54478722,4297.2,4296.6,0.7981]
[1756818594545,3.2078,4296.9,4296.6,0.7981]
[1756818594749,0.248,4296.8,4296.6,0.7981]
[1756818595252,0.248,4296.7,4296.6,0.7981]
[1756818597453,3.2078,4296.9,4296.6,0.7981]
[1756818597667,0.248,4296.8,4296.6,0.7981]
[1756818598252,0.248,4296.8,4296.7,1.0522]
[1756818598460,0.3615,4296.8,4296.7,1.8503]
[1756818598661,0.475,4296.8,4296.7,0.7981]
[1756818599054,0.5459,4296.8,4296.7,0.7981]
[1756818599360,3.4348,4296.8,4296.7,0.5331]
[1756818599549,3.4348,4296.8,4296.7,1.8503]
[1756818599550,3.2078,4296.8,4296.7,1.8503]
[1756818599755,3.2078,4297.3,4296.7,1.0522]
[1756818599959,0.1135,4297.2,4297.1,1.3312]
[1756818600252,0.1135,4297.2,4297.1,1.8503]
[1756818600865,0.3615,4297.2,4297.1,1.8503]
[1756818601250,0.475,4297.2,4297.1,1.3312]
[1756818601661,0.475,4297.2,4297.1,0.7981]
[1756818601858,4.77861001,4297.2,4296.6,0.7981]
[1756818602059,3.4348,4296.7,4296.6,1.3312]
[1756818602264,3.4558,4296.7,4296.6,1.8503]
[1756818602457,3.2078,4296.7,4296.6,1.8503]
[1756818602658,3.4558,4296.7,4296.6,1.8503]
[1756818603962,3.5338,4296.7,4296.6,1.8503]
[1756818604162,3.4558,4296.7,4296.6,1.8503]
[1756818604762,3.6118,4296.7,4296.6,1.3312]
[1756818605259,3.6118,4296.7,4296.6,0.7981]
[1756818605859,7.68854,4296.7,4295.6,0.7981]
[1756818606067,3.3638,4295.7,4295.6,0.7981]
[1756818606260,3.6118,4295.7,4295.6,0.7981]
[1756818606560,3.6118,4295.7,4295.0,0.3026]
[1756818606759,3.2858,4295.1,4295.0,1.3548]
[1756818606962,3.5338,4295.1,4295.0,1.3548]
[1756818607261,3.4558,4295.1,4295.0,0.7981]
[1756818608560,3.5046,4295.1,4295.0,0.7981]
[1756818608957,3.5046,4295.1,4294.5,1.0359]
[1756818609358,3.4558,4295.1,4294.6,0.7333]
[1756818609557,3.2078,4295.1,4295.0,1.0226]
[1756818609857,3.4558,4295.1,4295.0,0.7333]
[1756818610760,3.4558,4295.1,4294.5,0.3026]
[1756818610761,0.1384,4294.6,4294.5,0.7333]
[1756818610960,3.5942,4294.6,4294.5,0.7333]
[1756818611155,3.5942,4294.6,4293.5,0.3026]
[1756818611156,3.5942,4294.6,4294.0,0.7333]
[1756818611355,3.3462,4294.1,4293.5,1.0359]
[1756818611564,3.3462,4293.6,4293.5,0.7333]
[1756818611767,3.4558,4293.6,4293.5,0.7333]
[1756818611964,3.4558,4293.6,4292.7,0.18964028]
[1756818612170,3.4558,4293.6,4293.0,1.0226]
[1756818612668,3.4558,4293.6,4292.6,0.7333]
[1756818612669,3.2078,4293.1,4292.6,0.7333]
[1756818612863,0.2913,4293.0,4291.7,3.2078]
[1756818613360,3.2078,4293.8,4293.1,0.7333]
[1756818613566,0.248,4293.7,4293.1,0.7333]
[1756818613769,0.248,4293.6,4293.1,0.7333]
[1756818613963,3.2078,4293.8,4293.5,0.2893]
[1756818614170,3.2078,4294.5,4294.1,0.7333]
[1756818614361,0.248,4294.4,4294.1,0.7333]
[1756818614863,0.1164,4294.4,4294.1,0.7333]
[1756818615068,0.248,4294.3,4294.1,0.7333]
[1756818615967,0.248,4294.3,4294.0,3.4971]
[1756818616359,0.248,4294.3,4294.1,0.7333]
[1756818616562,0.248,4294.3,4294.0,3.4971]
[1756818616760,0.248,4294.3,4294.1,0.7333]
[1756818616962,3.2078,4294.2,4294.1,0.7333]
[1756818617363,3.2078,4294.2,4293.6,0.7333]
[1756818618367,0.248,4294.1,4294.0,0.2893]
[1756818618665,0.248,4294.1,4294.0,0.7333]
[1756818619064,0.248,4294.1,4293.5,0.2893]
[1756818619261,0.248,4294.1,4293.6,0.7333]
[1756818619665,0.248,4294.1,4294.0,0.2893]
[1756818619866,0.248,4294.1,4294.0,1.0226]
[1756818620365,0.248,4294.1,4294.0,0.2893]
[1756818620771,0.248,4294.1,4293.5,0.2893]
[1756818621169,0.248,4294.1,4293.6,0.7333]
[1756818621365,3.2078,4293.7,4293.5,0.7333]
[1756818621670,0.248,4293.6,4293.1,0.7333]
[1756818622467,3.2078,4293.7,4293.5,0.2893]
[1756818622673,0.1164,4294.4,4293.6,0.7333]
[1756818622872,0.1164,4294.4,4294.1,0.7333]
[1756818623171,0.248,4294.3,4294.1,0.7333]
[1756818623363,0.1164,4294.4,4294.1,0.7333]
[1756818623766,0.248,4294.3,4294.1,0.7333]
[1756818623967,0.248,4294.3,4294.0,0.2893]
[1756818623968,3.2078,4295.1,4295.0,1.0226]
[1756818624172,3.4558,4295.1,4295.0,1.0226]
[1756818624374,3.4558,4295.1,4294.1,0.7333]
[1756818624375,4.1115,4295.1,4294.1,0.7333]
[1756818624571,3.2078,4294.4,4294.0,0.2893]
[1756818624778,0.248,4294.3,4294.1,0.7333]
[1756818625474,0.248,4294.2,4294.1,0.7333]
[1756818625669,3.2078,4294.4,4294.1,0.7333]
[1756818625871,0.248,4294.8,4294.5,0.2893]
[1756818626377,0.248,4294.8,4294.0,0.2893]
[1756818626568,0.248,4294.8,4294.1,0.7333]
[1756818626769,3.2078,4294.6,4294.1,0.7333]
[1756818627091,34.75941556,4296.1,4294.0,0.2893]
[1756818627092,0.7496,4295.7,4294.6,0.1353]
[1756818627377,0.7496,4295.7,4295.1,0.1353]
[1756818627576,0.248,4295.6,4295.1,0.1353]
[1756818627778,0.248,4295.6,4295.0,3.2078]
[1756818627973,0.248,4295.6,4295.0,3.3431]
[1756818628170,0.3147,4295.5,4295.0,3.2078]
[1756818628368,0.21,4295.4,4295.0,3.2078]
[1756818628573,0.7496,4295.7,4295.1,0.1353]
[1756818628784,0.166,4295.4,4295.0,3.2078]
[1756818629072,0.7496,4295.3,4295.0,3.2078]
[1756818629277,0.248,4295.6,4295.1,0.1353]
[1756818629777,0.248,4295.7,4295.1,0.23281]
[1756818629977,0.248,4295.7,4295.6,3.3431]
[1756818630174,0.9976,4295.7,4295.6,3.2078]
[1756818631381,0.248,4295.7,4294.9,3.2078]
[1756818631573,0.7496,4295.4,4294.9,3.2078]
[1756818631777,1.0643,4295.0,4294.9,3.2078]
[1756818632079,0.7496,4295.0,4294.9,3.2078]
[1756818632270,1.0643,4295.5,4294.9,3.2078]
[1756818632471,0.7496,4295.3,4295.0,0.1353]
[1756818632666,0.7496,4295.4,4294.9,3.2078]
[1756818632877,1.0643,4295.0,4294.9,3.2078]
[1756818633176,0.7496,4295.0,4294.9,3.2078]
[1756818633982,1.0643,4295.0,4294.9,3.2078]
[1756818634573,0.3147,4295.0,4294.4,3.2078]
[1756818635274,3.2078,4295.3,4294.4,3.2078]
[1756818635471,0.248,4295.0,4294.5,0.1353]
[1756818635670,0.248,4295.0,4294.4,3.2078]
[1756818635877,0.248,4295.0,4294.5,0.1353]
[1756818636477,0.248,4295.0,4294.4,3.2078]
[1756818636680,0.248,4295.0,4294.4,3.3431]
[1756818637576,0.7496,4295.1,4294.4,3.3431]
[1756818637784,0.3147,4295.0,4294.4,3.3431]
[1756818638078,0.3147,4295.0,4294.4,3.2078]
[1756818638282,0.7496,4295.0,4294.4,3.2078]
[1756818638477,0.3147,4295.0,4294.4,3.2078]
[1756818638682,0.7496,4294.9,4294.4,3.2078]
[1756818639072,0.3147,4295.0,4294.4,3.2078]
[1756818639272,0.7519,4294.9,4294.4,3.2078]
[1756818639476,0.3147,4295.0,4294.4,3.2078]
[1756818639676,0.7519,4294.9,4294.4,3.2078]
[1756818640285,1.0605,4294.5,4294.4,3.2078]
[1756818640777,0.7519,4294.4,4293.4,3.5896]
[1756818641177,0.7519,4294.4,4293.4,3.3416]
[1756818641378,0.3086,4294.5,4293.4,3.3416]
[1756818641682,0.3086,4294.5,4293.4,3.2078]
[1756818641879,1.0605,4293.5,4293.4,3.2078]
[1756818642175,0.3086,4294.0,4293.4,3.2078]
[1756818642176,0.7519,4294.0,4293.4,3.2078]
[1756818642375,0.248,4294.3,4293.5,0.1338]
[1756818642675,0.7519,4294.7,4294.0,0.1338]
[1756818642874,0.7519,4294.6,4294.0,0.1338]
[1756818643575,0.248,4294.7,4294.4,3.2078]
[1756818643780,1.0605,4294.5,4294.4,3.2078]
[1756818644280,1.3085,4294.5,4294.4,3.2078]
[1756818644585,0.7519,4294.5,4294.4,3.2078]
[1756818645980,1.0605,4294.5,4294.4,3.2078]
[1756818646483,1.3085,4294.5,4294.4,3.2078]
[1756818646980,0.248,4294.7,4294.4,3.3416]
[1756818647288,0.248,4294.7,4294.5,0.1338]
[1756818647489,196.6584,4294.0,4293.9,3.5896]
[1756818648283,197.4103,4294.0,4293.9,3.2078]
[1756818649288,0.7519,4293.9,4293.5,0.248]
[1756818649478,0.7519,4293.9,4293.4,3.2078]
[1756818649980,196.6584,4294.0,4293.4,3.2078]
[1756818650181,196.6584,4294.0,4293.5,0.4809]
[1756818650383,196.6584,4294.0,4293.9,3.2078]
[1756818650587,196.6584,4294.0,4293.9,3.4558]
[1756818652088,196.6584,4294.0,4293.9,9.35579453]
[1756818652385,196.6584,4294.0,4293.9,50.15579453]
[1756818652584,196.6584,4294.0,4293.9,45.67490454]
[1756818652791,196.6584,4294.0,4293.9,45.92290454]
[1756818652979,197.4103,4294.0,4293.9,45.92290454]
[1756818653177,197.4103,4294.0,4293.9,44.2558]
[1756818653886,196.6584,4294.0,4293.9,45.92290454]
[1756818654280,92.62620735,4292.0,4290.8,8.49196982]
[1756818654485,0.7519,4294.4,4293.1,0.41921]
[1756818654686,0.7519,4294.4,4293.8,3.2078]
[1756818655085,1.2324,4294.0,4293.9,0.248]
[1756818655388,5.7203,4294.5,4293.9,41.048]
[1756818655592,1.0605,4294.5,4293.9,41.048]
[1756818655790,5.7203,4294.5,4293.9,41.048]
[1756818656385,0.7519,4294.5,4293.9,41.048]
[1756818656586,0.7519,4294.9,4293.9,41.048]
[1756818656987,0.7519,4294.9,4294.0,0.248]
[1756818657189,1.2324,4294.1,4294.0,0.248]
[1756818657695,0.7519,4294.1,4294.0,0.248]
[1756818657894,0.7891,4294.5,4294.0,0.248]
[1756818658189,0.7519,4294.9,4294.3,3.2078]
[1756818658395,4.2683,4295.0,4294.4,0.248]
[1756818658584,4.7488,4295.0,4294.4,0.248]
[1756818658894,1.7474,4294.4,4294.3,3.2078]
[1756818659796,1.7474,4294.4,4294.3,3.4558]
[1756818659993,1.2324,4294.4,4294.3,0.248]
[1756818660200,0.7519,4294.4,4294.3,0.248]
[1756818660402,1.2324,4294.9,4294.3,0.248]
[1756818661194,3.5164,4295.0,4294.3,0.248]
[1756818661195,3.2078,4295.0,4294.3,0.248]
[1756818661593,4.5888,4295.9,4294.4,0.41909]
[1756818661799,5.1403,4295.4,4294.9,3.2078]
[1756818662001,0.4805,4295.3,4295.0,0.248]
[1756818662205,4.6598,4295.4,4295.1,1.002]
[1756818662409,0.7519,4295.8,4295.2,1.25]
[1756818662607,4.5888,4295.9,4295.3,1.1674]
[1756818662901,33.8486,4297.5,4296.2,0.41891]
[1756818662902,3.2078,4297.2,4296.2,0.41891]
[1756818663106,3.2078,4297.7,4296.4,0.7484]
[1756818663295,4.6598,4297.6,4296.5,0.248]
[1756818663500,4.6598,4297.6,4296.6,40.8]
[1756818663695,4.6598,4297.5,4296.6,40.8]
[1756818664107,3.2078,4297.7,4296.6,40.8]
[1756818664311,4.6598,4297.5,4296.7,0.7484]
[1756818664506,4.6598,4297.5,4296.8,0.248]
[1756818664808,3.2078,4297.7,4296.8,0.248]
[1756818665104,0.7519,4297.4,4296.8,0.248]
[1756818665610,1.5127,4297.3,4296.8,0.9964]
[1756818665907,1.5127,4297.3,4296.9,0.248]
[1756818666106,1.5127,4297.3,4297.0,0.248]
[1756818666408,0.7519,4297.2,4297.1,0.248]
[1756818670305,1.5127,4297.3,4297.1,1.2187]
[1756818670612,1.5127,4297.3,4297.2,0.9707]
[1756818670801,1.5127,4297.3,4297.2,2.9967]
[1756818671304,1.5127,4297.3,4297.2,6.9967]
[1756818671907,3.0613,4297.3,4297.2,44.22654705]
[1756818672612,3.0613,4297.3,4297.2,42.826]
[1756818672812,3.0613,4297.3,4297.2,43.073]
[1756818673511,1.5127,4297.3,4297.2,44.0437]
[1756818675106,3.0613,4297.3,4297.2,43.073]
[1756818675814,1.5127,4297.3,4297.2,44.0437]
[1756818676607,3.0613,4297.3,4297.2,43.073]
[1756818677410,1.5127,4297.3,4297.2,44.0437]
[1756818678015,1.5127,4297.3,4297.2,48.0437]
[1756818678917,1.5486,4298.9,4297.8,0.41876]
[1756818679212,1.5486,4298.9,4297.0,1.53132506]
[1756818679213,3.5662,4298.3,4298.2,4.1944]
[1756818679413,8.226,4298.3,4298.2,4.4414]
[1756818679615,3.2078,4299.2,4298.2,46.2121]
[1756818679807,1.5486,4298.5,4298.4,2.026]
[1756818680007,1.5486,4298.5,4298.4,3.2437]
[1756818680414,3.2078,4299.2,4298.4,3.2437]
[1756818680607,3.2078,4299.2,4298.4,2.273]
[1756818681008,2.5728,4298.5,4298.4,2.273]
[1756818681218,4.6598,4298.7,4298.4,3.2437]
[1756818681514,1.5486,4298.7,4298.6,2.9967]
[1756818681711,1.5486,4298.7,4298.6,3.2437]
[1756818682013,1.5486,4298.7,4298.6,2.273]
[1756818682609,2.5728,4298.7,4298.6,2.273]
[1756818682909,7.5662,4298.7,4298.2,44.0078]
[1756818683116,7.2326,4298.3,4298.2,44.0078]
[1756818683311,7.2326,4298.3,4298.2,44.2548]
[1756818684013,7.2326,4298.3,4298.2,44.0078]
[1756818684219,7.2326,4298.3,4298.2,44.2548]
[1756818685415,6.2084,4298.3,4298.2,44.2548]
[1756818686426,6.2084,4298.3,4298.2,44.0078]
[1756818686718,6.2084,4298.3,4298.2,44.2548]
[1756818686921,17.8412,4298.3,4298.2,44.2548]
[1756818687115,17.8412,4298.3,4298.2,44.0078]
[1756818687317,17.8412,4298.3,4298.2,44.2548]
[1756818689524,17.8412,4298.3,4298.2,41.047]
[1756818690826,17.8412,4298.3,4297.5,3.2078]
[1756818690827,2.0176,4297.6,4297.5,4.1944]
[1756818691118,8.226,4297.6,4297.5,4.4414]
[1756818691316,1.5486,4297.6,4297.5,47.2515]
[1756818691511,0.247,4298.4,4297.5,47.2515]
[1756818691717,2.5728,4298.1,4298.0,2.026]
[1756818691918,2.5728,4298.1,4298.0,2.273]
[1756818692121,2.16326712,4298.1,4298.0,2.273]
[1756818692323,1.5486,4298.1,4298.0,3.2437]
[1756818692825,8.226,4298.1,4298.0,2.273]
[1756818693217,1.5486,4298.1,4298.0,3.2437]
[1756818693619,19.8588,4298.1,4298.0,0.247]
[1756818693918,8.226,4298.1,4298.0,2.273]
[1756818694224,8.84088902,4298.1,4298.0,2.273]
[1756818694425,8.84088831,4298.1,4298.0,2.273]
[1756818695019,8.226,4298.1,4298.0,2.273]
[1756818695328,7.84759508,4298.1,4298.0,2.273]
[1756818695625,7.84759508,4298.1,4298.0,5.4808]
[1756818695828,7.2326,4298.1,4298.0,5.4808]
[1756818696128,7.8476785,4298.1,4298.0,5.4808]
[1756818696527,3.2078,4298.8,4298.0,6.4515]
[1756818696528,1.5486,4298.7,4298.0,6.4515]
[1756818696727,3.2078,4298.8,4298.3,2.026]
[1756818696728,0.61526735,4298.6,4298.3,2.026]
[1756818696931,6.2084,4298.8,4298.7,2.026]
[1756818697122,7.84741284,4298.8,4298.7,2.273]
[1756818697422,1.5486,4298.8,4298.7,44.0437]
[1756818698418,1.5486,4298.8,4298.7,43.073]
[1756818698622,1.5486,4298.8,4298.7,44.46237]
[1756818698926,0.3509,4298.9,4298.8,3.41536]
[1756818699824,1.3872,4298.9,4298.8,0.9866]
[1756818700130,2.8197,4298.9,4298.8,2.2052]
[1756818700330,1.7834,4298.9,4298.8,3.1733]
[1756818701025,0.3509,4298.9,4298.8,3.1733]
[1756818703528,1.7834,4298.9,4298.8,3.1733]
[1756818703724,0.3509,4298.9,4298.8,2.9263]
[1756818703934,0.3509,4298.9,4298.8,3.1733]
[1756818704528,1.7834,4298.9,4298.8,3.1733]
[1756818704930,0.3509,4298.9,4298.8,3.1733]
[1756818705334,1.4325,4299.6,4299.5,2.0168]
[1756818705535,2.4688,4299.6,4299.5,3.2319]
[1756818705726,7.1286,4299.6,4299.5,2.2638]
[1756818706236,8.1704,4299.6,4299.5,2.2638]
[1756818706731,8.1704,4299.6,4299.4,3.2078]
[1756818707039,20.4269,4299.5,4299.4,3.2078]
[1756818707331,20.4269,4299.5,4299.4,3.4548]
[1756818709436,2.4688,4298.4,4298.3,3.2078]
[1756818709638,2.4688,4298.4,4298.3,2.2638]
[1756818710237,0.6269,4299.0,4298.3,3.2319]
[1756818710435,6.0923,4298.6,4298.5,2.0168]
[1756818710738,8.1704,4298.6,4298.5,2.2638]
[1756818710937,1.4325,4298.6,4298.5,2.2638]
[1756818711137,2.4688,4299.4,4299.3,2.0168]
[1756818711344,2.4688,4299.4,4299.3,2.2638]
[1756818711733,3.5106,4299.4,4299.3,2.2638]
[1756818712337,3.5106,4299.4,4299.3,1.2922]
[1756818712534,3.5106,4299.4,4299.3,0.247]
[1756818713438,3.5106,4298.4,4298.3,3.2078]
[1756818713839,3.5106,4298.4,4298.3,3.4548]
[1756818714534,3.5106,4298.4,4298.3,1.2922]
[1756818714734,3.5106,4298.4,4298.3,2.2638]
[1756818714940,3.5106,4298.4,4298.3,1.2922]
[1756818715139,3.5106,4298.4,4298.3,0.247]
[1756818715443,3.5106,4298.4,4298.3,2.2638]
[1756818715934,3.5106,4298.4,4298.3,1.2922]
[1756818716535,3.5106,4298.4,4298.3,0.247]
[1756818716938,3.5106,4298.4,4298.3,1.2922]
[1756818717235,1.4325,4298.4,4298.3,3.2319]
[1756818717937,1.4325,4298.9,4298.3,7.2319]
[1756818718138,3.5106,4298.4,4298.3,1.0452]
[1756818718442,8.1704,4298.4,4298.3,41.047]
[1756818718641,3.5106,4298.4,4298.3,41.047]
[1756818718836,0.6269,4298.5,4297.4,0.9681]
[1756818718837,1.4325,4298.3,4297.4,0.9681]
[1756818719033,1.0363,4297.6,4297.5,1.2922]
[1756818719239,2.4688,4297.6,4297.5,43.0638]
[1756818719536,2.4688,4297.6,4297.5,43.24578475]
[1756818719932,1.4325,4297.6,4297.5,44.0319]
[1756818720134,1.4325,4297.6,4297.5,43.0638]
[1756818720339,1.4325,4297.6,4297.5,44.21946083]
[1756818721034,1.4325,4298.4,4297.5,44.21946083]
[1756818721246,6.7379,4298.0,4297.9,1.0452]
[1756818721545,2.705,4298.0,4297.9,0.247]
[1756818721743,3.5106,4297.9,4297.8,0.247]
[1756818721943,3.5106,4297.9,4296.3,33.9199]
[1756818721944,3.5306,4297.9,4297.7,0.247]
[1756818722140,1.4325,4297.8,4297.7,3.4755]
[1756818722350,7.1286,4297.8,4297.7,2.2638]
[1756818722538,7.1286,4297.8,4297.3,1.40098805]
[1756818722539,1.4325,4297.7,4297.3,0.18928805]
[1756818722741,3.5106,4297.4,4297.3,1.0452]
[1756818722943,3.5106,4297.4,4297.3,1.2922]
[1756818723346,3.5106,4297.4,4297.3,1.47626926]
[1756818723540,2.4688,4297.4,4297.3,2.44786926]
[1756818723845,1.4325,4297.9,4297.3,3.65956926]
[1756818724039,3.5106,4297.4,4297.3,2.44786926]
[1756818724236,3.5106,4297.4,4297.3,1.47626926]
[1756818724445,3.5106,4297.4,4297.3,0.43106926]
[1756818724644,3.5106,4297.4,4297.3,0.247]
[1756818725039,2.0781,4297.4,4297.0,40.8]
[1756818725343,8.1704,4297.2,4297.1,0.247]
[1756818725745,3.5106,4297.2,4297.1,1.2922]
[1756818725938,3.5106,4297.2,4297.1,2.2638]
[1756818726645,2.4688,4297.2,4297.1,2.2638]
[1756818726844,1.4325,4297.2,4297.1,3.4755]
[1756818727042,1.4325,4297.9,4297.1,3.4755]
[1756818727243,1.4325,4297.9,4297.8,3.2285]
[1756818727443,2.4688,4297.9,4297.8,2.2638]
[1756818727747,1.4325,4297.9,4297.8,3.4755]
[1756818728749,1.4325,4297.9,4297.8,43.0638]
[1756818729044,3.2078,4298.7,4297.8,44.2801]
[1756818729248,1.4762,4298.4,4298.3,3.214]
[1756818729449,6.136,4298.5,4298.4,3.214]
[1756818729642,3.2078,4298.7,4298.4,3.214]
[1756818729842,5.7154,4298.7,4298.6,1.9977]
[1756818730047,1.4762,4299.3,4298.6,3.214]
[1756818730354,7.1674,4299.1,4299.0,1.9977]
[1756818730552,7.1674,4299.1,4299.0,43.0447]
[1756818731552,1.4762,4299.3,4299.1,1.2163]
[1756818731849,1.4762,4299.3,4299.2,2.2437]
[1756818732051,3.5119,4299.3,4299.2,2.2437]
[1756818734354,8.1717,4299.3,4299.2,0.246]
[1756818734556,8.1917,4299.3,4299.2,0.246]
[1756818735161,8.1917,4299.3,4299.2,1.283]
[1756818735749,8.1917,4299.3,4299.2,0.246]
[1756818737549,8.1917,4299.3,4299.0,40.8]
[1756818737757,6.136,4299.1,4299.0,40.8]
[1756818737956,6.156,4299.1,4299.0,40.8]
[1756818738155,4.6798,4299.1,4299.0,0.246]
[1756818738355,6.7155,4299.1,4299.0,0.246]
[1756818738752,8.1917,4299.1,4299.0,0.246]
[1756818739156,2.0357,4298.6,4298.5,40.8]
[1756818739347,3.5119,4298.6,4298.5,41.046]
[1756818740250,3.5119,4298.0,4297.9,4.2448]
[1756818740456,3.5119,4298.0,4297.9,5.4515]
[1756818740655,3.5119,4298.0,4297.9,46.2515]
[1756818740856,3.5119,4298.0,4297.9,46.43439933]
[1756818741362,3.2078,4298.8,4298.6,3.214]
[1756818741660,0.0043,4299.9,4298.7,2.66236]
[1756818741848,1.0314,4299.3,4299.2,3.2078]
[1756818742048,1.0314,4299.3,4299.2,3.4538]
[1756818743051,6.6955,4299.3,4299.2,3.4538]
[1756818743256,6.7155,4299.3,4299.2,3.4538]
[1756818743457,8.1917,4299.3,4299.2,3.4538]
[1756818743957,8.1917,4299.3,4297.9,40.98484901]
[1756818743958,8.1917,4299.3,4298.7,3.2078]
[1756818744152,1.4762,4298.9,4298.8,0.246]
[1756818744363,1.4762,4298.9,4298.8,41.046]
[1756818744657,1.4762,4299.4,4298.8,41.046]
[1756818744864,1.4762,4299.2,4298.8,41.046]
[1756818745160,1.4762,4299.4,4298.8,41.046]
[1756818745961,4.6598,4299.4,4298.8,41.046]
[1756818746159,1.4762,4299.2,4298.8,41.046]
[1756818746354,0.0043,4299.9,4298.8,41.046]
[1756818746355,1.4762,4299.8,4298.9,0.66465]
[1756818746554,6.1403,4299.9,4299.3,3.2078]
[1756818746763,1.4762,4299.7,4299.3,3.2078]
[1756818746962,3.0828,4299.5,4299.4,0.246]
[1756818747567,2.5076,4299.5,4299.4,41.046]
[1756818747864,1.4762,4299.5,4299.4,41.046]
[1756818748361,2.0514,4299.5,4299.4,41.046]
[1756818748957,6.7112,4299.5,4299.4,41.046]
[1756818750259,6.7312,4299.5,4299.4,41.046]
[1756818751966,10.7312,4299.5,4299.4,41.046]
[1756818752569,12.7669,4299.5,4299.4,0.246]
[1756818753169,15.9747,4299.5,4299.4,0.246]
[1756818754771,15.9747,4299.5,4298.5,40.8]
[1756818755071,3.5119,4298.6,4298.5,40.8]
[1756818755279,8.1717,4298.6,4298.5,41.046]
[1756818755465,8.1917,4298.6,4298.5,41.046]
[1756818755666,0.02,4298.6,4298.5,41.046]
[1756818756076,1.4762,4298.9,4298.5,41.046]
[1756818756381,1.4962,4298.8,4298.5,41.046]
[1756818756578,1.4762,4299.4,4298.5,41.046]
[1756818756775,1.4862,4298.8,4298.5,41.046]
[1756818757478,0.01,4298.8,4298.5,41.046]
[1756818758281,0.01,4298.8,4298.5,41.46469]
[1756818758478,0.01,4298.8,4298.6,0.41868]
[1756818758678,0.01,4298.8,4298.7,0.246]
[1756818759079,0.01,4298.8,4298.7,41.46467]
[1756818759279,0.01,4298.8,4298.7,45.46467]
[1756818759777,0.01,4298.8,4298.7,45.046]
[1756818760184,1.5646,4300.1,4299.2,0.41862]
[1756818760482,3.6243,4300.1,4300.0,3.2078]
[1756818760684,3.6043,4300.1,4300.0,3.4538]